lending/lending_fUSD_20250409
["ID","MTS","AMOUNT","RATE_DAILY","PERIOD"]
[357590128,1744207837887,-1149.68890686,0.00020986,2]
[357590129,1744207837897,-4240.99514411,0.00021,2]
[357590130,1744207837958,-719.94826558,0.00021,2]
[357590206,1744207853864,-570.13742456,0.00021,2]
[357590207,1744207853885,-474.991,0.00021,2]
[357590208,1744207853896,-2635.79193179,0.00021,2]
[357590209,1744207854524,-1500.0,0.00021,2]
[357590210,1744207854559,-931.45271812,0.00021,2]
[357590211,1744207854586,-19818.20618711,0.00021,2]
[357590212,1744207854596,-300.0,0.00021,2]
[357590213,1744207854605,-1000.0,0.00021356,2]
[357590214,1744207854615,-500.0,0.00021417,2]
[357590215,1744207854624,-342.4614645,0.00021417,2]
[357590216,1744207854633,-500.0,0.00021625,2]
[357590217,1744207854642,-1300.0,0.00022,2]
[357590218,1744207854651,-191.55,0.00022182,2]
[357590219,1744207854663,-500.0,0.00022247,2]
[357590220,1744207854675,-1384.22,0.0002231,2]
[357590221,1744207854692,-150.0,0.00022438,2]
[357590222,1744207854701,-613.89,0.0002247,2]
[357590223,1744207854711,-250.0,0.00022476,2]
[357590224,1744207854720,-157.41,0.00022554,2]
[357590225,1744207854730,-23900.0,0.00022599,2]
[357590226,1744207854739,-153.42,0.00022601,2]
[357590227,1744207854748,-2959.09150357,0.00022602,2]
[357590228,1744207854758,-153.42,0.00022609,2]
[357590229,1744207854768,-153.42,0.00022617,2]
[357590230,1744207854777,-14756.52,0.0002262,2]
[357590231,1744207854787,-153.42,0.00022625,2]
[357590232,1744207854796,-153.42,0.00022633,2]
[357590233,1744207854806,-200.0,0.00022639,7]
[357590234,1744207854816,-153.42,0.00022641,2]
[357590235,1744207854826,-153.42,0.00022649,2]
[357590236,1744207854835,-153.42,0.00022657,2]
[357590237,1744207854844,-153.42,0.00022665,2]
[357590238,1744207854854,-153.42,0.00022673,2]
[357590239,1744207854864,-153.42,0.00022682,2]
[357590240,1744207854873,-153.42,0.0002269,2]
[357590241,1744207854883,-153.42,0.00022698,2]
[357590242,1744207854892,-153.42,0.00022706,2]
[357590243,1744207854901,-153.42,0.00022714,2]
[357590244,1744207854910,-1300.0,0.00023,3]
[357590245,1744207854920,-350.0,0.00023,2]
[357590246,1744207854930,-200.0,0.00023,2]
[357590247,1744207854939,-166.66,0.00023547,2]
[357590248,1744207854948,-384.79,0.00023836,2]
[357590249,1744207854958,-300.0,0.00023929,2]
[357590250,1744207854967,-982.8282165,0.00024,2]
[357590251,1744207854977,-1340.0,0.00024,4]
[357590252,1744207854986,-1000.0,0.00024025,2]
[357590253,1744207854996,-166.66,0.00024325,2]
[357590254,1744207855005,-1384.22,0.00024573,2]
[357590255,1744207855015,-150.0,0.00024799,2]
[357590256,1744207855024,-234.93042204,0.00024799,2]
[357590257,1744207855034,-166.06748051,0.000248,2]
[357590258,1744207855043,-325.39747311,0.000248,2]
[357590259,1744207855053,-275.108127,0.000248,7]
[357590260,1744207855062,-151.0,0.000248,7]
[357590261,1744207855071,-151.0,0.000248,7]
[357590262,1744207855081,-151.0,0.000248,7]
[357590263,1744207855090,-205.576565,0.000248,7]
[357590264,1744207855100,-151.0,0.000248,7]
[357590265,1744207855109,-205.576565,0.000248,7]
[357590266,1744207855119,-153.146348,0.000248,7]
[357590267,1744207855128,-151.0,0.000248,7]
[357590268,1744207855137,-151.0,0.000248,7]
[357590269,1744207855147,-646.90698732,0.000248,2]
[357590270,1744207855156,-593.414501,0.000248,7]
[357590271,1744207855166,-239.322161,0.000248,7]
[357590272,1744207855177,-153.116512,0.000248,7]
[357590273,1744207855187,-160.342555,0.000248,7]
[357590274,1744207855197,-160.342555,0.000248,7]
[357590275,1744207855206,-3895.696537,0.000248,7]
[357590276,1744207855215,-3895.696537,0.000248,7]
[357590277,1744207855225,-152.122665,0.000248,7]
[357590278,1744207855235,-151.0,0.000248,7]
[357590279,1744207855244,-151.0,0.000248,7]
[357590280,1744207855254,-151.0,0.000248,7]
[357590281,1744207855263,-151.0,0.000248,7]
[357590282,1744207855272,-20810.05779683,0.000248,3]
[357590283,1744207855765,-67859.08206595,0.000248,3]
[357590284,1744207855784,-469.80706805,0.000248,3]
[357590285,1744207856338,-18445.9836773,0.000248,3]
[357590286,1744207856354,-18331.49757787,0.000248,3]
[357590287,1744207856367,-151.166207,0.000248,7]
[357590288,1744207856384,-153.638082,0.000248,7]
[357590289,1744207856397,-1547.290713,0.000248,7]
[357590290,1744207856408,-1547.290713,0.000248,7]
[357590291,1744207856422,-151.0,0.000248,7]
[357590292,1744207856436,-151.0,0.000248,7]
[357590293,1744207856447,-151.0,0.000248,7]
[357590294,1744207856461,-153.364787,0.000248,7]
[357590295,1744207856476,-151.0,0.000248,7]
[357590296,1744207856490,-151.0,0.000248,7]
[357590297,1744207856503,-500.0,0.00024873,2]
[357590298,1744207856516,-386.59411305,0.00024873,2]
[357590299,1744207856530,-500.0,0.00024873,2]
[357590300,1744207856545,-500.0,0.00024873,2]
[357590301,1744207856558,-13990.7142429,0.0002488,3]
[357590302,1744207856571,-151.0,0.0002489,7]
[357590303,1744207856585,-164.905625,0.0002489,7]
[357590304,1744207856598,-154.717108,0.0002489,7]
[357590305,1744207856611,-205.576565,0.0002489,7]
[357590306,1744207856624,-151.0,0.0002489,7]
[357590307,1744207856638,-205.576565,0.0002489,7]
[357590308,1744207856650,-151.0,0.0002489,7]
[357590309,1744207856663,-151.0,0.0002489,7]
[357590310,1744207856676,-593.414501,0.0002489,7]
[357590311,1744207856689,-239.322161,0.0002489,7]
[357590312,1744207856703,-160.342555,0.0002489,7]
[357590313,1744207856716,-160.342555,0.0002489,7]
[357590314,1744207856729,-3895.696537,0.0002489,7]
[357590315,1744207856742,-3895.696537,0.0002489,7]
[357590316,1744207856755,-151.0,0.0002489,7]
[357590317,1744207856768,-151.0,0.0002489,7]
[357590318,1744207856782,-152.662126,0.0002489,7]
[357590319,1744207856795,-151.0,0.0002489,7]
[357590320,1744207856809,-186.40543,0.0002489,7]
[357590321,1744207856822,-151.0,0.0002489,7]
[357590322,1744207856835,-28166.90090412,0.0002489,3]
[357590323,1744207856852,-55777.38455338,0.0002489,3]
[357590324,1744207856865,-1547.290713,0.0002489,7]
[357590325,1744207856879,-1547.290713,0.0002489,7]
[357590326,1744207856893,-151.0,0.0002489,7]
[357590327,1744207856906,-151.0,0.0002489,7]
[357590328,1744207856920,-151.0,0.0002489,7]
[357590329,1744207856933,-151.0,0.0002489,7]
[357590330,1744207856947,-151.0,0.0002489,7]
[357590331,1744207856960,-151.0,0.000249,7]
[357590332,1744207856973,-151.0,0.000249,7]
[357590333,1744207856987,-151.7881,0.000249,7]
[357590334,1744207856999,-151.0,0.000249,7]
[357590335,1744207857009,-151.0,0.000249,7]
[357590336,1744207857018,-151.0,0.000249,7]
[357590337,1744207857028,-151.0,0.000249,7]
[357590338,1744207857043,-151.0,0.000249,7]
[357590339,1744207857054,-151.0,0.000249,7]
[357590340,1744207857064,-151.0,0.000249,7]
[357590341,1744207857074,-151.458368,0.000249,7]
[357590342,1744207857084,-151.0,0.000249,7]
[357590343,1744207857094,-151.0,0.000249,7]
[357590344,1744207857104,-151.0,0.000249,7]
[357590345,1744207857114,-151.0,0.000249,7]
[357590346,1744207857124,-152.218575,0.000249,7]
[357590347,1744207857134,-151.0,0.000249,7]
[357590348,1744207857144,-151.0,0.000249,7]
[357590349,1744207857153,-151.0,0.000249,7]
[357590350,1744207857163,-151.0,0.000249,7]
[357590351,1744207857173,-151.0,0.000249,7]
[357590352,1744207857183,-151.0,0.000249,7]
[357590353,1744207857193,-151.0,0.000249,7]
[357590354,1744207857203,-388.185167,0.000249,7]
[357590355,1744207857212,-388.185167,0.000249,7]
[357590356,1744207857222,-151.0,0.000249,7]
[357590357,1744207857231,-151.0,0.000249,7]
[357590358,1744207857241,-151.0,0.000249,7]
[357590359,1744207857250,-151.0,0.000249,7]
[357590360,1744207857260,-151.0,0.000249,7]
[357590361,1744207857269,-151.0,0.000249,7]
[357590362,1744207857278,-151.0,0.000249,7]
[357590363,1744207857293,-292.351399,0.000249,7]
[357590364,1744207857303,-557.922233,0.000249,7]
[357590365,1744207857313,-292.351399,0.000249,7]
[357590366,1744207857322,-557.922233,0.000249,7]
[357590367,1744207857332,-151.0,0.000249,7]
[357590368,1744207857342,-151.0,0.000249,7]
[357590369,1744207857351,-151.0,0.000249,7]
[357590370,1744207857360,-151.0,0.000249,7]
[357590371,1744207857371,-158.234544,0.000249,7]
[357590372,1744207857380,-158.234544,0.000249,7]
[357590373,1744207857390,-151.0,0.000249,7]
[357590374,1744207857399,-151.0,0.000249,7]
[357590375,1744207857409,-151.0,0.000249,7]
[357590376,1744207857419,-172.6684,0.000249,7]
[357590377,1744207857428,-151.0,0.000249,7]
[357590378,1744207857439,-172.6684,0.000249,7]
[357590379,1744207857448,-151.0,0.000249,7]
[357590380,1744207857458,-151.0,0.000249,7]
[357590381,1744207857468,-151.0,0.000249,7]
[357590382,1744207857478,-275.108127,0.000249,7]
[357590383,1744207857487,-151.0,0.000249,7]
[357590384,1744207857497,-2009.154449,0.000249,7]
[357590385,1744207857510,-2009.154449,0.000249,7]
[357590386,1744207857519,-403.192002,0.000249,7]
[357590387,1744207857529,-151.0,0.000249,7]
[357590388,1744207857540,-403.192002,0.000249,7]
[357590389,1744207857549,-155.140349,0.000249,7]
[357590390,1744207857559,-224.956502,0.000249,7]
[357590391,1744207857568,-224.956502,0.000249,7]
[357590392,1744207857578,-151.0,0.000249,7]
[357590393,1744207857587,-205.576565,0.000249,7]
[357590394,1744207857597,-151.0,0.000249,7]
[357590395,1744207857606,-205.576565,0.000249,7]
[357590396,1744207857616,-151.0,0.000249,7]
[357590397,1744207857626,-151.0,0.000249,7]
[357590398,1744207857635,-593.414501,0.000249,7]
[357590399,1744207857645,-593.414501,0.000249,7]
[357590400,1744207857655,-239.322161,0.000249,7]
[357590401,1744207857664,-160.342555,0.000249,7]
[357590402,1744207857674,-160.342555,0.000249,7]
[357590403,1744207857684,-151.0,0.000249,7]
[357590404,1744207857693,-151.0,0.000249,7]
[357590405,1744207857703,-151.0,0.000249,7]
[357590406,1744207857713,-209.552774,0.000249,7]
[357590407,1744207857722,-151.0,0.000249,7]
[357590408,1744207857732,-151.0,0.000249,7]
[357590409,1744207857741,-3895.696537,0.000249,7]
[357590410,1744207857751,-151.0,0.000249,7]
[357590411,1744207857760,-3895.696537,0.000249,7]
[357590412,1744207857770,-158.434415,0.000249,7]
[357590413,1744207857779,-151.0,0.000249,7]
[357590414,1744207857793,-151.0,0.000249,7]
[357590415,1744207857803,-151.0,0.000249,7]
[357590416,1744207857812,-151.0,0.000249,7]
[357590417,1744207857822,-170.909216,0.000249,7]
[357590418,1744207857832,-170.909216,0.000249,7]
[357590419,1744207857842,-151.0,0.000249,7]
[357590420,1744207857852,-151.0,0.000249,7]
[357590421,1744207857862,-151.0,0.000249,7]
[357590422,1744207857871,-151.0,0.000249,7]
[357590423,1744207857881,-151.0,0.000249,7]
[357590424,1744207857890,-151.0,0.000249,7]
[357590425,1744207857900,-151.0,0.000249,7]
[357590426,1744207857909,-151.0,0.000249,7]
[357590427,1744207857919,-151.0,0.000249,7]
[357590428,1744207857928,-151.0,0.000249,7]
[357590429,1744207857938,-151.0,0.000249,7]
[357590430,1744207857947,-151.0,0.000249,7]
[357590431,1744207857957,-337.294523,0.000249,7]
[357590432,1744207857966,-337.294523,0.000249,7]
[357590433,1744207857976,-337.294523,0.000249,7]
[357590434,1744207858634,-337.294523,0.000249,7]
[357590435,1744207858653,-215.329886,0.000249,7]
[357590436,1744207858672,-215.329886,0.000249,7]
[357590437,1744207858688,-215.329886,0.000249,7]
[357590438,1744207858705,-215.329886,0.000249,7]
[357590439,1744207858715,-151.0,0.000249,7]
[357590440,1744207858726,-151.0,0.000249,7]
[357590441,1744207858736,-151.0,0.000249,7]
[357590442,1744207858745,-151.0,0.000249,7]
[357590443,1744207858755,-151.0,0.000249,7]
[357590444,1744207858764,-151.0,0.000249,7]
[357590445,1744207858773,-151.0,0.000249,7]
[357590446,1744207858783,-151.0,0.000249,7]
[357590447,1744207858792,-1265.334784,0.000249,7]
[357590448,1744207858801,-1265.334784,0.000249,7]
[357590449,1744207858811,-1265.334784,0.000249,7]
[357590450,1744207858820,-1265.334784,0.000249,7]
[357590451,1744207858829,-151.0,0.000249,7]
[357590452,1744207858839,-151.0,0.000249,7]
[357590453,1744207858849,-151.0,0.000249,7]
[357590454,1744207858858,-151.0,0.000249,7]
[357590455,1744207858867,-304.935488,0.000249,7]
[357590456,1744207858876,-151.0,0.000249,7]
[357590457,1744207858886,-304.935488,0.000249,7]
[357590458,1744207858895,-220.260519,0.000249,7]
[357590459,1744207858904,-304.935488,0.000249,7]
[357590460,1744207858913,-304.935488,0.000249,7]
[357590461,1744207858923,-151.0,0.000249,7]
[357590462,1744207858932,-151.0,0.000249,7]
[357590463,1744207858941,-1291.120705,0.000249,7]
[357590464,1744207858950,-1291.120705,0.000249,7]
[357590465,1744207858960,-8329.207123,0.000249,7]
[357590466,1744207858969,-8329.207123,0.000249,7]
[357590467,1744207858978,-1291.120705,0.000249,7]
[357590468,1744207858988,-1291.120705,0.000249,7]
[357590469,1744207858997,-8329.207123,0.000249,7]
[357590470,1744207859006,-151.0,0.000249,7]
[357590471,1744207859015,-8329.207123,0.000249,7]
[357590472,1744207859025,-151.0,0.000249,7]
[357590473,1744207859036,-151.0,0.000249,7]
[357590474,1744207859045,-151.0,0.000249,7]
[357590475,1744207859054,-291.474438,0.000249,7]
[357590476,1744207859063,-291.474438,0.000249,7]
[357590477,1744207859072,-291.474438,0.000249,7]
[357590478,1744207859081,-291.474438,0.000249,7]
[357590479,1744207859090,-151.0,0.000249,7]
[357590480,1744207859099,-300.0,0.000249,9]
[357590481,1744207859108,-299.186234,0.000249,7]
[357590482,1744207859117,-299.186234,0.000249,7]
[357590483,1744207859127,-299.186234,0.000249,7]
[357590484,1744207859136,-299.186234,0.000249,7]
[357590485,1744207859145,-432.205425,0.000249,7]
[357590486,1744207859154,-432.205425,0.000249,7]
[357590487,1744207859164,-408.95187,0.000249,7]
[357590488,1744207859173,-408.95187,0.000249,7]
[357590489,1744207859183,-432.205425,0.000249,7]
[357590490,1744207859192,-432.205425,0.000249,7]
[357590491,1744207859201,-408.95187,0.000249,7]
[357590492,1744207859210,-408.95187,0.000249,7]
[357590493,1744207859219,-245.638279,0.000249,7]
[357590494,1744207859229,-245.638279,0.000249,7]
[357590495,1744207859237,-245.638279,0.000249,7]
[357590496,1744207859247,-245.638279,0.000249,7]
[357590497,1744207859256,-201.425749,0.000249,7]
[357590498,1744207859265,-151.0,0.000249,7]
[357590499,1744207859274,-151.778961,0.000249,7]
[357590500,1744207859286,-90450.8023571,0.000249,3]
[357590501,1744207859298,-151.0,0.000249,7]
[357590502,1744207859307,-151.0,0.000249,7]
[357590503,1744207859317,-1547.290713,0.000249,7]
[357590504,1744207859326,-1547.290713,0.000249,7]
[357590505,1744207859335,-151.0,0.000249,7]
[357590506,1744207859344,-151.0,0.000249,7]
[357590507,1744207859353,-151.0,0.000249,7]
[357590508,1744207859363,-151.0,0.000249,7]
[357590509,1744207859372,-153.81364,0.000249,7]
[357590510,1744207859382,-151.0,0.000249,7]
[357590511,1744207859391,-151.0,0.000249,7]
[357590512,1744207859400,-288.494191,0.000249,7]
[357590513,1744207859410,-400.0,0.00025,2]
[357590514,1744207859419,-166.66,0.00025102,2]
[357590515,1744207859428,-300.0,0.00025299,2]
[357590516,1744207859437,-280.0,0.000253,10]
[357590517,1744207859446,-2959.09150357,0.00025305,2]
[357590518,1744207859455,-157.41,0.00025373,2]
[357590519,1744207859465,-13990.7142429,0.00025442,3]
[357590520,1744207859474,-2989.58,0.00025786,2]
[357590521,1744207859484,-166.66,0.00025879,2]
[357590522,1744207859493,-600.0,0.000259,9]
[357590523,1744207859503,-577.41188671,0.0002599,2]
[357590524,1744207859513,-9045.08023571,0.0002599,3]
[357590525,1744207859522,-151.0,0.0002599,7]
[357590526,1744207859534,-151.0,0.0002599,7]
[357590527,1744207859543,-4349.75404798,0.00026,2]
[357590528,1744207859552,-3057.09169674,0.00026,2]
[357590529,1744207859561,-150.0,0.00026169,2]
[357590530,1744207859570,-151.42,0.0002638,2]
[357590531,1744207859579,-13990.7142429,0.0002639,3]
[357590532,1744207859589,-18090.1604714,0.0002639,3]
[357590533,1744207859598,-1547.290713,0.0002639,7]
[357590534,1744207859607,-1547.290713,0.0002639,7]
[357590535,1744207859616,-151.0,0.0002639,7]
[357590536,1744207859626,-151.0,0.0002639,7]
[357590537,1744207859635,-25706.33666167,0.000264,2]
[357590538,1744207859645,-151.0,0.0002643,7]
[357590539,1744207859654,-13990.7142429,0.0002643,3]
[357590540,1744207859664,-239.322161,0.0002644,7]
[357590541,1744207859673,-160.342555,0.0002644,7]
[357590542,1744207859683,-160.342555,0.0002644,7]
[357590543,1744207859692,-3895.696537,0.0002644,7]
[357590544,1744207859702,-3895.696537,0.0002644,7]
[357590545,1744207859712,-151.0,0.0002644,7]
[357590546,1744207859721,-151.0,0.0002644,7]
[357590547,1744207859731,-13990.7142429,0.00026442,3]
[357590548,1744207859742,-18090.1604714,0.00026442,3]
[357590549,1744207859752,-151.0,0.00026452,7]
[357590550,1744207859762,-8329.207123,0.00026452,7]
[357590551,1744207859773,-8329.207123,0.00026452,7]
[357590552,1744207859787,-299.186234,0.00026452,7]
[357590553,1744207859797,-299.186234,0.00026452,7]
[357590554,1744207859810,-408.95187,0.00026452,7]
[357590555,1744207859822,-408.95187,0.00026452,7]
[357590556,1744207859833,-151.0,0.00026452,7]
[357590557,1744207859844,-151.0,0.00026452,7]
[357590558,1744207859855,-151.0,0.00026452,7]
[357590559,1744207859866,-166.66,0.00026657,2]
[357590560,1744207859877,-1000.0,0.00026695,2]
[357590561,1744207859888,-1384.22,0.00026837,2]
[357590562,1744207859898,-217.05,0.00026849,2]
[357590563,1744207859908,-268.11,0.00026849,2]
[357590564,1744207859918,-150.41,0.00026849,2]
[357590565,1744207859928,-205.576565,0.00027,7]
[357590566,1744207859939,-151.0,0.00027,7]
[357590567,1744207859949,-205.576565,0.00027,7]
[357590568,1744207859959,-151.0,0.00027,7]
[357590569,1744207859968,-165.285501,0.00027,7]
[357590570,1744207859979,-593.414501,0.00027,7]
[357590571,1744207859989,-593.414501,0.00027,7]
[357590572,1744207859998,-450.0,0.00027,2]
[357590573,1744207860008,-151.759823,0.00027,7]
[357590574,1744207860018,-151.0,0.00027,7]
[357590575,1744207860027,-151.0,0.00027,7]
[357590576,1744207860043,-151.0,0.00027,7]
[357590577,1744207860053,-1265.334784,0.00027,7]
[357590578,1744207860063,-1265.334784,0.00027,7]
[357590579,1744207860073,-151.0,0.00027,7]
[357590580,1744207860083,-304.935488,0.00027,7]
[357590581,1744207860093,-304.935488,0.00027,7]
[357590582,1744207860103,-151.0,0.00027,7]
[357590583,1744207860113,-151.0,0.00027,7]
[357590584,1744207860122,-432.205425,0.00027,7]
[357590585,1744207860132,-432.205425,0.00027,7]
[357590586,1744207860142,-492.04689689,0.00027104,2]
[357590587,1744207860151,-500.0,0.00027164,2]
[357590588,1744207860161,-9045.08023571,0.00027387,3]
[357590589,1744207860170,-151.0,0.00027397,7]
[357590590,1744207860180,-151.0,0.00027397,7]
[357590591,1744207860189,-151.0,0.00027397,7]
[357590592,1744207860198,-151.0,0.00027397,7]
[357590593,1744207860208,-337.294523,0.00027397,7]
[357590594,1744207860217,-337.294523,0.00027397,7]
[357590595,1744207860226,-215.329886,0.00027397,7]
[357590596,1744207860237,-215.329886,0.00027397,7]
[357590597,1744207860246,-151.0,0.00027397,7]
[357590598,1744207860255,-151.0,0.00027397,7]
[357590599,1744207860265,-1291.120705,0.00027397,7]
[357590600,1744207860274,-1291.120705,0.00027397,7]
[357590601,1744207860286,-151.0,0.00027397,7]
[357590602,1744207860297,-291.474438,0.00027397,7]
[357590603,1744207860306,-291.474438,0.00027397,7]
[357590604,1744207860316,-245.638279,0.00027397,7]
[357590605,1744207860325,-245.638279,0.00027397,7]
[357590606,1744207860334,-1547.290713,0.00027397,7]
[357590607,1744207860345,-1547.290713,0.00027397,7]
[357590608,1744207860354,-151.0,0.00027397,7]
[357590609,1744207860364,-151.0,0.00027397,7]
[357590610,1744207860374,-151.0,0.00027397,7]
[357590611,1744207860383,-151.0,0.00027397,7]
[357590612,1744207860393,-411.93827,0.00027397,7]
[357590613,1744207860402,-151.0,0.00027397,7]
[357590614,1744207860411,-151.0,0.00027397,7]
[357590615,1744207860421,-151.0,0.00027397,7]
[357590616,1744207860430,-151.0,0.00027397,7]
[357590617,1744207860439,-151.0,0.00027397,7]
[357590618,1744207860448,-220.194195,0.00027397,7]
[357590619,1744207860457,-166.66,0.00027434,2]
[357590620,1744207860467,-150.0,0.00027539,2]
[357590621,1744207860476,-151.0,0.0002778,7]
[357590622,1744207860486,-27981.4284858,0.0002778,3]
[357590623,1744207860495,-27135.2407071,0.0002778,3]
[357590624,1744207860505,-13990.7142429,0.0002779,3]
[357590625,1744207860514,-9045.08023571,0.0002779,3]
[357590626,1744207860523,-151.0,0.0002779,7]
[357590627,1744207860534,-151.0,0.0002779,7]
[357590628,1744207860543,-151.0,0.000278,7]
[357590629,1744207860553,-8329.207123,0.000278,7]
[357590630,1744207860563,-8329.207123,0.000278,7]
[357590631,1744207860572,-299.186234,0.000278,7]
[357590632,1744207860582,-299.186234,0.000278,7]
[357590633,1744207860592,-408.95187,0.000278,7]
[357590634,1744207860601,-408.95187,0.000278,7]
[357590635,1744207860611,-151.0,0.000278,7]
[357590636,1744207860620,-1547.290713,0.000278,7]
[357590637,1744207860629,-1547.290713,0.000278,7]
[357590638,1744207860639,-151.0,0.000278,7]
[357590639,1744207860648,-151.0,0.000278,7]
[357590640,1744207860658,-391.0,0.0002783,15]
[357590641,1744207860667,-1547.290713,0.00028,7]
[357590642,1744207860676,-1547.290713,0.00028,7]
[357590643,1744207860686,-151.0,0.00028,7]
[357590644,1744207860695,-202.421541,0.00028,7]
[357590645,1744207860704,-2959.09150357,0.00028007,2]
[357590646,1744207860714,-157.41,0.00028193,2]
[357590647,1744207860723,-150.0,0.00028909,2]
[357590648,1744207860733,-9045.08023571,0.0002899,3]
[357590649,1744207860742,-500.0,0.00029,2]
[357590650,1744207860752,-151.0,0.00029,7]
[357590651,1744207860761,-151.739543,0.00029,7]
[357590652,1744207860770,-151.0,0.00029,7]
[357590653,1744207860780,-151.0,0.00029,7]
[357590654,1744207860794,-151.0,0.00029,7]
[357590655,1744207860804,-151.0,0.00029,7]
[357590656,1744207860813,-151.0,0.00029,7]
[357590657,1744207860823,-154.654953,0.00029,7]
[357590658,1744207860833,-170.909216,0.00029,7]
[357590659,1744207860843,-170.909216,0.00029,7]
[357590660,1744207860853,-151.0,0.00029,7]
[357590661,1744207860862,-13990.7142429,0.00029032,3]
[357590662,1744207860871,-646.90698728,0.00029052,2]
[357590663,1744207860880,-1384.22,0.00029101,2]
[357590664,1744207860890,-1000.0,0.00029364,2]
[357590665,1744207860899,-403.192002,0.00029678,7]
[357590666,1744207860909,-403.192002,0.00029678,7]
[357590667,1744207860918,-151.42,0.0002988,2]
[357590668,1744207860928,-54270.4814143,0.00029889,3]
[357590669,1744207860937,-36180.3209428,0.00029889,3]
[357590670,1744207860952,-180.0,0.00029898,2]
[357590671,1744207860962,-180.0,0.00029898,2]
[357590672,1744207860971,-180.0,0.00029898,2]
[357590673,1744207860981,-180.0,0.00029898,2]
[357590674,1744207860990,-180.0,0.00029898,2]
[357590675,1744207861001,-151.0,0.00029899,7]
[357590676,1744207861011,-151.0,0.00029899,7]
[357590677,1744207861020,-151.0,0.00029899,7]
[357590678,1744207861029,-151.0,0.00029899,7]
[357590679,1744207861042,-222.483548,0.00029899,7]
[357590680,1744207861051,-151.0,0.00029899,7]
[357590681,1744207861061,-151.0,0.00029899,7]
[357590682,1744207861070,-151.0,0.00029899,7]
[357590683,1744207861079,-151.0,0.00029899,7]
[357590684,1744207861089,-151.0,0.00029899,7]
[357590685,1744207861098,-151.0,0.00029899,7]
[357590686,1744207861108,-151.0,0.00029899,7]
[357590687,1744207861117,-151.0,0.00029899,7]
[357590688,1744207861127,-151.0,0.00029899,7]
[357590689,1744207861136,-151.0,0.00029899,7]
[357590690,1744207861145,-151.0,0.00029899,7]
[357590691,1744207861154,-151.0,0.00029899,7]
[357590692,1744207861164,-151.0,0.00029899,7]
[357590693,1744207861174,-154.45228,0.00029899,7]
[357590694,1744207861183,-151.0,0.00029899,7]
[357590695,1744207861193,-151.0,0.00029899,7]
[357590696,1744207861202,-388.185167,0.00029899,7]
[357590697,1744207861212,-388.185167,0.00029899,7]
[357590698,1744207861221,-151.0,0.00029899,7]
[357590699,1744207861230,-213.017112,0.00029899,7]
[357590700,1744207861240,-151.0,0.00029899,7]
[357590701,1744207861249,-151.0,0.00029899,7]
[357590702,1744207861260,-151.0,0.00029899,7]